fUST/lending_fUST_20240624
["ID","MTS","AMOUNT","RATE_DAILY","PERIOD"]
[330218450,1719177040499,-815.89,0.00016438,2]
[330218451,1719177040508,-500.0,0.00016438,2]
[330218452,1719177040518,-890.02,0.00016438,2]
[330218453,1719177040527,-500.0,0.00016438,2]
[330218454,1719177040537,-448.91955808,0.00016438,2]
[330218455,1719177040546,-500.0,0.00016438,2]
[330218456,1719177040555,-490.01253011,0.00016438,2]
[330218457,1719177040565,-500.0,0.00016438,2]
[330218458,1719177040574,-531.51,0.00016438,2]
[330218459,1719177040583,-902.5,0.00016438,2]
[330218460,1719177040592,-1099.65,0.00016438,2]
[330218461,1719177040601,-500.0,0.00016438,2]
[330218462,1719177040610,-1211.44,0.00016438,2]
[330218463,1719177040620,-500.0,0.00016438,2]
[330218464,1719177040629,-3704.0,0.00016438,2]
[330218465,1719177040638,-500.0,0.00016438,2]
[330218466,1719177040648,-500.0,0.00016438,2]
[330218467,1719177040658,-500.0,0.00016438,2]
[330218468,1719177040667,-500.0,0.00016438,2]
[330218469,1719177040677,-587.51,0.00016438,2]
[330218470,1719177040687,-1024.39,0.00016438,2]
[330218471,1719177040696,-500.0,0.00016438,2]
[330218472,1719177040705,-877.98,0.00016438,2]
[330218473,1719177040714,-500.0,0.00016438,2]
[330218474,1719177040723,-500.0,0.00016438,2]
[330218475,1719177040733,-504.3,0.00016438,2]
[330218476,1719177040743,-500.0,0.00016438,2]
[330218477,1719177040752,-500.0,0.00016438,2]
[330218478,1719177040761,-500.0,0.00016438,2]
[330218479,1719177040775,-6219.06,0.00016438,2]
[330218480,1719177040790,-1717.16,0.00016438,2]
[330218481,1719177040800,-500.0,0.00016438,2]
[330218482,1719177040809,-500.0,0.00016438,2]
[330218483,1719177040819,-500.0,0.00016438,2]
[330218484,1719177040828,-500.0,0.00016438,2]
[330218485,1719177040838,-350.25959646,0.00016438,2]
[330218486,1719177040848,-2631.12,0.00016438,2]
[330218487,1719177040858,-500.0,0.00016438,2]
[330218488,1719177040867,-632.59,0.00016438,2]
[330218489,1719177040876,-565.03,0.00016438,2]
[330218490,1719177040885,-500.0,0.00016438,2]
[330218491,1719177040895,-3973.28,0.00016438,2]
[330218492,1719177040905,-520.38567189,0.00016438,2]
[330218493,1719177040916,-500.0,0.00016438,2]
[330218494,1719177040926,-500.0,0.00016438,2]
[330218495,1719177040935,-6005.34,0.00016438,2]
[330218496,1719177040944,-680.79,0.00016438,2]
[330218497,1719177040954,-19510.98,0.00016438,2]
[330218498,1719177040964,-500.0,0.00016438,2]
[330218499,1719177040973,-561.56,0.00016438,2]
[330218500,1719177040982,-500.0,0.00016438,2]
[330218501,1719177040992,-500.0,0.00016438,2]
[330218502,1719177041002,-500.0,0.00016438,2]
[330218503,1719177041012,-519.99534314,0.00016438,2]
[330218504,1719177041027,-500.0,0.00016438,2]
[330218505,1719177041036,-1124.59,0.00016438,2]
[330218506,1719177041045,-500.0,0.00016438,2]
[330218507,1719177041054,-500.0,0.00016438,2]
[330218508,1719177041062,-1135.28,0.00016438,2]
[330218509,1719177041073,-1409.32,0.00016438,2]
[330218510,1719177041082,-627.55,0.00016438,2]
[330218511,1719177041091,-500.0,0.00016438,2]
[330218512,1719177041101,-500.0,0.00016438,2]
[330218513,1719177041111,-3309.95,0.00016438,2]
[330218514,1719177041120,-527.23,0.00016438,2]
[330218515,1719177041129,-191.19592454,0.00016438,2]
[330218516,1719177041147,-1549.32407546,0.00016438,2]
[330218517,1719177041157,-5740.14,0.00016438,2]
[330218518,1719177041166,-2059.13,0.00016438,2]
[330218519,1719177041175,-1229.39,0.00016438,2]
[330218520,1719177041184,-500.0,0.00016438,2]
[330218521,1719177041193,-500.0,0.00016438,2]
[330218522,1719177041203,-437.34671598,0.00016438,2]
[330218523,1719177041212,-500.0,0.00016438,2]
[330218524,1719177041221,-989.32,0.00016438,2]
[330218525,1719177041230,-6794.72,0.00016438,2]
[330218526,1719177041240,-500.0,0.00016438,2]
[330218527,1719177041249,-18629.12,0.00016438,2]
[330218528,1719177041259,-1313.04,0.00016438,2]
[330218529,1719177041269,-2250.26,0.00016438,2]
[330218530,1719177041283,-500.0,0.00016438,2]
[330218531,1719177041292,-665.62,0.00016438,2]
[330218532,1719177041302,-500.0,0.00016438,2]
[330218533,1719177041311,-618.14,0.00016438,2]
[330218535,1719177041320,-1261.99,0.00016438,2]
[330218536,1719177041330,-742.82,0.00016438,2]
[330218537,1719177041340,-560.01,0.00016438,2]
[330218538,1719177041351,-1350.79,0.00016438,2]
[330218540,1719177041362,-4256.55992987,0.00016452,2]
[330218542,1719177041372,-155.15774704,0.00016452,2]
[330218543,1719177041381,-2115.0148568,0.00016486,2]
[330218544,1719177041391,-2128.88510458,0.00016489,2]
[330218545,1719177041400,-154.83742071,0.00016489,2]
[330218546,1719177041409,-597.61557581,0.00016522,2]
[330218547,1719177041420,-154.83742071,0.00016525,2]
[330218548,1719177041430,-1085.81899386,0.00016525,2]
[330218549,1719177041440,-154.83742071,0.0001657,2]
[330218550,1719177041449,-154.83742071,0.0001657,2]
[330218551,1719177041459,-373.67425734,0.00016589,2]
[330218552,1719177041468,-373.67425734,0.00016589,2]
[330218553,1719177041478,-516.72213415,0.00016607,2]
[330218554,1719177041487,-276.0,0.0001663,2]
[330218555,1719177041496,-154.83742071,0.00016688,2]
[330218556,1719177041505,-299.323,0.000167,2]
[330218557,1719177041515,-212.57,0.000167,2]
[330218558,1719177041525,-150.0,0.000167,2]
[330218559,1719177041535,-301.66699658,0.00016711,2]
[330218560,1719177041543,-500.0,0.00016712,2]
[330218561,1719177041552,-500.0,0.00016712,2]
[330218562,1719177041562,-500.0,0.00016712,2]
[330218563,1719177041571,-500.0,0.00016712,2]
[330218564,1719177041580,-500.0,0.00016712,2]
[330218565,1719177041590,-500.0,0.00016712,2]
[330218566,1719177041599,-500.0,0.00016712,2]
[330218567,1719177041610,-500.0,0.00016712,2]
[330218568,1719177041618,-500.0,0.00016712,2]
[330218569,1719177041627,-500.0,0.00016712,2]
[330218570,1719177041637,-565.59,0.00016712,2]
[330218571,1719177041649,-500.0,0.00016712,2]
[330218572,1719177041659,-500.0,0.00016712,2]
[330218573,1719177041668,-500.0,0.00016712,2]
[330218574,1719177041677,-500.0,0.00016712,2]
[330218575,1719177041686,-500.0,0.00016712,2]
[330218576,1719177041696,-1118.92,0.00016712,2]
[330218577,1719177041707,-738.57,0.00016712,2]
[330218578,1719177041719,-500.0,0.00016712,2]
[330218579,1719177041728,-500.0,0.00016712,2]
[330218580,1719177041740,-500.0,0.00016712,2]
[330218581,1719177041751,-500.0,0.00016712,2]
[330218582,1719177041761,-500.0,0.00016712,2]
[330218583,1719177041772,-500.0,0.00016712,2]
[330218584,1719177041781,-250.0,0.00016712,2]
[330218585,1719177041790,-500.0,0.00016712,2]
[330218586,1719177041799,-500.0,0.00016712,2]
[330218587,1719177041808,-500.0,0.00016712,2]
[330218588,1719177041817,-500.0,0.00016712,2]
[330218589,1719177041826,-500.0,0.00016712,2]
[330218590,1719177041835,-679.98,0.00016712,2]
[330218591,1719177041845,-500.0,0.00016712,2]
[330218592,1719177041855,-500.0,0.00016712,2]
[330218593,1719177041864,-500.0,0.00016712,2]
[330218594,1719177041873,-500.0,0.00016712,2]
[330218595,1719177041882,-500.0,0.00016712,2]
[330218596,1719177041891,-500.0,0.00016712,2]
[330218597,1719177041900,-500.0,0.00016712,2]
[330218598,1719177041910,-856.06,0.00016712,2]
[330218599,1719177041919,-500.0,0.00016712,2]
[330218600,1719177041929,-500.0,0.00016712,2]
[330218601,1719177041938,-601.94,0.00016712,2]
[330218602,1719177041947,-500.0,0.00016712,2]
[330218603,1719177041956,-500.0,0.00016712,2]
[330218604,1719177041965,-500.0,0.00016712,2]
[330218605,1719177041975,-1337.38,0.00016712,2]
[330218606,1719177041984,-500.0,0.00016712,2]
[330218607,1719177041994,-500.0,0.00016712,2]
[330218608,1719177042004,-500.0,0.00016712,2]
[330218609,1719177042014,-531.05232773,0.00016712,2]
[330218610,1719177042026,-500.0,0.00016712,2]
[330218611,1719177042035,-500.0,0.00016712,2]
[330218612,1719177042157,-500.0,0.00016712,2]
[330218613,1719177042167,-500.0,0.00016712,2]
[330218614,1719177042176,-968.95,0.00016712,2]
[330218615,1719177042185,-500.0,0.00016712,2]
[330218616,1719177042194,-297.23291265,0.00016712,2]
[330218617,1719177042204,-1296.42,0.00016712,2]
[330218618,1719177042213,-1548.66,0.00016712,2]
[330218619,1719177042222,-151.0,0.00016712,2]
[330218620,1719177042232,-500.0,0.00016712,2]
[330218621,1719177042241,-500.0,0.00016712,2]
[330218622,1719177042250,-517.88585259,0.00016712,2]
[330218623,1719177042263,-1212.32,0.00016712,2]
[330218624,1719177042278,-555.2,0.00016712,2]
[330218625,1719177042287,-500.0,0.00016712,2]
[330218626,1719177042296,-500.0,0.00016712,2]
[330218627,1719177042306,-500.0,0.00016712,2]
[330218628,1719177042316,-500.0,0.00016712,2]
[330218629,1719177042325,-3572.14,0.00016712,2]
[330218630,1719177042334,-1366.17,0.00016712,2]
[330218631,1719177042345,-500.0,0.00016712,2]
[330218632,1719177042354,-151.0,0.00016712,2]
[330218633,1719177042363,-558.83,0.00016712,2]
[330218634,1719177042373,-832.44,0.00016712,2]
[330218635,1719177042383,-500.0,0.00016712,2]
[330218636,1719177042393,-529.0318926,0.00016712,2]
[330218637,1719177042403,-500.0,0.00016712,2]
[330218638,1719177042412,-500.0,0.00016712,2]
[330218639,1719177042422,-500.0,0.00016712,2]
[330218640,1719177042432,-500.0,0.00016712,2]
[330218641,1719177042441,-500.0,0.00016712,2]
[330218642,1719177042451,-755.92,0.00016712,2]
[330218643,1719177042460,-500.0,0.00016712,2]
[330218644,1719177042470,-500.0,0.00016712,2]
[330218645,1719177042480,-533.38,0.00016712,2]
[330218646,1719177042490,-1575.4,0.00016712,2]
[330218647,1719177042499,-1848.39,0.00016712,2]
[330218648,1719177042508,-519.39351104,0.00016712,2]
[330218649,1719177042517,-500.0,0.00016712,2]
[330218651,1719177042530,-500.0,0.00016712,2]
[330218653,1719177042539,-668.35,0.00016712,2]
[330218654,1719177042549,-500.0,0.00016712,2]
[330218655,1719177042558,-500.0,0.00016712,2]
[330218656,1719177042567,-151.0,0.00016712,2]
[330218657,1719177042577,-534.32,0.00016712,2]
[330218658,1719177042586,-500.0,0.00016712,2]
[330218659,1719177042596,-500.0,0.00016712,2]
[330218660,1719177042607,-500.0,0.00016712,2]
[330218661,1719177042616,-500.0,0.00016712,2]
[330218662,1719177042626,-151.0,0.00016712,2]
[330218663,1719177042636,-1044.03,0.00016712,2]
[330218664,1719177042646,-855.21,0.00016712,2]
[330218665,1719177042655,-1266.75,0.00016712,2]
[330218668,1719177042664,-500.0,0.00016712,2]
[330218672,1719177042673,-500.0,0.00016712,2]
[330218676,1719177042683,-151.0,0.00016712,2]
[330218678,1719177042692,-500.0,0.00016712,2]
[330218679,1719177042702,-29115.09,0.00016712,2]
[330218680,1719177042712,-1110.69,0.00016712,2]
[330218681,1719177042722,-822.24,0.00016712,2]
[330218682,1719177042731,-500.0,0.00016712,2]
[330218683,1719177042742,-500.0,0.00016712,2]
[330218684,1719177042753,-500.0,0.00016712,2]
[330218685,1719177042764,-500.0,0.00016712,2]
[330218686,1719177042775,-635.05,0.00016712,2]
[330218687,1719177042784,-1046.47,0.00016712,2]
[330218689,1719177042794,-4924.7,0.00016712,2]
[330218691,1719177042804,-2788.54,0.00016712,2]
[330218693,1719177042813,-500.0,0.00016712,2]
[330218695,1719177042822,-500.0,0.00016712,2]
[330218698,1719177042831,-5554.78,0.00016712,2]
[330218700,1719177042840,-500.0,0.00016712,2]
[330218702,1719177042849,-966.56,0.00016712,2]
[330218704,1719177042859,-500.0,0.00016712,2]
[330218706,1719177042868,-500.0,0.00016712,2]
[330218708,1719177042877,-500.0,0.00016712,2]
[330218710,1719177042886,-500.0,0.00016712,2]
[330218712,1719177042895,-2122.91,0.00016712,2]
[330218714,1719177042904,-500.0,0.00016712,2]
[330218716,1719177042914,-151.0,0.00016712,2]
[330218718,1719177042924,-500.0,0.00016712,2]
[330218720,1719177042933,-588.6,0.00016712,2]
[330218721,1719177042942,-1236.56,0.00016712,2]
[330218722,1719177042952,-1345.54,0.00016712,2]
[330218723,1719177042961,-815.89,0.00016712,2]
[330218724,1719177042970,-890.02,0.00016712,2]
[330218725,1719177042979,-199.10986905,0.00016712,2]
[330218726,1719177042989,-500.0,0.00016712,2]
[330218727,1719177042998,-531.51,0.00016712,2]
[330218728,1719177043007,-902.5,0.00016712,2]
[330218729,1719177043016,-1099.65,0.00016712,2]
[330218730,1719177043031,-532.89231378,0.00016712,2]
[330218731,1719177043040,-1211.44,0.00016712,2]
[330218732,1719177043050,-500.0,0.00016712,2]
[330218733,1719177043060,-3704.0,0.00016712,2]
[330218734,1719177043068,-500.0,0.00016712,2]
[330218736,1719177043078,-500.0,0.00016712,2]
[330218738,1719177043087,-587.51,0.00016712,2]
[330218739,1719177043096,-1024.39,0.00016712,2]
[330218740,1719177043105,-500.0,0.00016712,2]
[330218741,1719177043114,-877.98,0.00016712,2]
[330218742,1719177043124,-500.0,0.00016712,2]
[330218743,1719177043132,-504.3,0.00016712,2]
[330218744,1719177043141,-500.0,0.00016712,2]
[330218745,1719177043150,-500.0,0.00016712,2]
[330218746,1719177043159,-6219.06,0.00016712,2]
[330218747,1719177043169,-1717.16,0.00016712,2]
[330218748,1719177043178,-500.0,0.00016712,2]
[330218749,1719177043187,-500.0,0.00016712,2]
[330218750,1719177043196,-500.0,0.00016712,2]
[330218751,1719177043205,-500.0,0.00016712,2]
[330218752,1719177043215,-115.38570776,0.00016712,2]
[330218771,1719177048586,289.94,0.00010959,2]
[330218772,1719177059393,241.61,0.00010959,2]
[330218774,1719177071151,201.35,0.00010959,2]
[330218775,1719177081689,167.79,0.00010959,2]
[330218776,1719177092275,838.96,0.00010959,2]
[330218777,1719177144706,5052.88160595,0.00010959,2]
[330218778,1719177147851,2242.01398174,0.00010959,2]
[330218780,1719177177604,16215.99027815,0.00010959,2]
[330218782,1719177204638,3000.0,0.000225,30]
[330218783,1719177227742,16215.99027815,0.00013283,2]
[330218784,1719177275117,16215.99027815,0.00013283,2]
[330218785,1719177279370,2098.1174429,0.00013283,2]
[330218786,1719177280842,290.03620959,0.00013283,2]
[330218787,1719177345790,154.83742071,0.00013283,2]
[330218788,1719177352023,154.83742071,0.00013283,2]
[330218789,1719177371200,226.9008053,0.00013283,2]
[330218790,1719177371594,154.83742071,0.00013283,2]
[330218791,1719177372635,154.83742071,0.00013283,2]
[330218793,1719177454662,154.83742071,0.00013283,2]
[330218794,1719177456783,154.83742071,0.00013283,2]
[330218795,1719177463024,183.01017006,0.00013283,2]
[330218796,1719177472884,437.02249968,0.00013283,2]
[330218797,1719177479649,5324.02069306,0.00013283,2]
[330218798,1719177483604,154.83742071,0.00013283,2]
[330218799,1719177504931,507.94,0.00010959,2]
[330218800,1719177547786,241.09346035,0.00013283,2]
[330218801,1719177557156,203.92302132,0.00013283,2]
[330218802,1719177560597,154.91638039,0.00010959,2]
[330218804,1719177630164,1107.08283946,0.00010959,2]
[330218805,1719177710246,10269.1595021,0.00014032,2]
[330218807,1719177808160,3000.0,0.000225,30]
[330218809,1719177949160,22941.40860868,0.00014032,2]
[330218811,1719178084222,861.2,0.00026,120]
[330218817,1719178141464,596.09454497,0.00013931,2]
[330218818,1719178151857,-300.0,0.00014031,2]
[330218819,1719178151892,-192.10565405,0.00014032,2]
[330218820,1719178151930,-492.10565405,0.00014032,2]
[330218821,1719178151967,-492.10565405,0.00014032,2]
[330218838,1719178176681,-521.63199329,0.00014032,2]
[330218839,1719178176730,-167.92146156,0.00014032,2]
[330218891,1719178233205,-92.72097432,0.00014032,2]
[330218893,1719178233214,-388.07919594,0.00014032,2]
[330218895,1719178233226,-636.9375,0.00014032,2]
[330218899,1719178233400,-2916.066193,0.00014032,2]
[330218900,1719178233414,-258.18004786,0.00014032,2]
[330218901,1719178233426,-489.95085395,0.00014032,2]
[330218902,1719178233435,-181.58035626,0.00014032,2]
[330218903,1719178233446,-264.14185802,0.00014143,2]
[330218904,1719178233457,-35.85814198,0.00014143,2]
[330218905,1719178233469,-9305.25505711,0.00014144,2]
[330218918,1719178238400,-2942.23738589,0.00014144,2]
[330218920,1719178238409,-1007.8370724,0.00014271,2]
[330218922,1719178238418,-250.0,0.00014379,2]
[330218924,1719178238427,-261.55719,0.000145,2]
[330218926,1719178238437,-1583.80277575,0.00015468,2]
[330218928,1719178238446,-420.0,0.00015557,2]
[330218930,1719178238455,-164.79141245,0.00015588,2]
[330218932,1719178238464,-1006.44369003,0.00015737,2]
[330218934,1719178238474,-1824.90926636,0.00015738,2]
[330218936,1719178238482,-208.75351441,0.00015745,2]
[330218938,1719178238492,-42175.40753023,0.00015784,2]
[330218940,1719178238502,-207.68904958,0.00015838,2]
[330218942,1719178238511,-1824.90926634,0.00015888,2]
[330218944,1719178238521,-154.83742071,0.00015934,2]
[330218946,1719178238530,-154.83742071,0.00015994,2]
[330218948,1719178238539,-154.83742071,0.00015995,2]
[330218950,1719178238548,-154.83742071,0.00016001,2]
[330218951,1719178238557,-1824.90926634,0.00016038,2]
[330218952,1719178238566,-175.97073239,0.00016043,2]
[330218953,1719178238575,-205.6831939,0.000161,2]
[330218954,1719178238585,-205.754624,0.00016164,2]
[330218955,1719178238594,-205.754624,0.00016164,2]
[330218956,1719178238603,-205.754624,0.00016164,2]
[330218957,1719178238613,-205.754624,0.00016164,2]
[330218958,1719178238623,-1824.90926634,0.00016188,2]
[330218959,1719178238632,-1824.90926634,0.00016338,2]
[330218960,1719178238642,-500.0,0.00016438,2]
[330218961,1719178238651,-500.0,0.00016438,2]
[330218962,1719178238666,-500.0,0.00016438,2]
[330218963,1719178238675,-500.0,0.00016438,2]
[330218964,1719178238685,-500.0,0.00016438,2]
[330218965,1719178238694,-440.66831007,0.00016438,2]
[330218966,1719178238706,-500.0,0.00016438,2]
[330218967,1719178238716,-500.0,0.00016438,2]
[330218968,1719178238725,-551.77,0.00016438,2]
[330218969,1719178238735,-500.0,0.00016438,2]
[330218970,1719178238747,-500.0,0.00016438,2]
[330218971,1719178238756,-508.94,0.00016438,2]
[330218972,1719178238766,-485.03956545,0.00016438,2]
[330218973,1719178238775,-500.0,0.00016438,2]
[330218974,1719178238784,-500.0,0.00016438,2]
[330218975,1719178238796,-439.55385918,0.00016438,2]
[330218976,1719178238807,-1252.32,0.00016438,2]
[330218977,1719178238818,-512.26,0.00016438,2]
[330218978,1719178238828,-500.0,0.00016438,2]
[330218979,1719178238839,-500.0,0.00016438,2]
[330218980,1719178238849,-763.07,0.00016438,2]
[330218981,1719178238859,-500.0,0.00016438,2]
[330218982,1719178238868,-500.0,0.00016438,2]
[330218983,1719178238878,-500.0,0.00016438,2]
[330218984,1719178238887,-500.0,0.00016438,2]
[330218985,1719178238897,-500.0,0.00016438,2]
[330218986,1719178238906,-784.73,0.00016438,2]
[330218987,1719178238915,-500.0,0.00016438,2]
[330218988,1719178238924,-500.0,0.00016438,2]
[330218989,1719178238933,-500.0,0.00016438,2]
[330218990,1719178238943,-500.0,0.00016438,2]
[330218991,1719178238952,-500.0,0.00016438,2]
[330218992,1719178238961,-1018.14,0.00016438,2]
[330218993,1719178238971,-753.72,0.00016438,2]
[330218994,1719178238982,-500.0,0.00016438,2]
[330218995,1719178238992,-1123.76,0.00016438,2]
[330218996,1719178239002,-888.21,0.00016438,2]
[330218997,1719178239012,-500.0,0.00016438,2]
[330218998,1719178239023,-500.0,0.00016438,2]
[330218999,1719178239033,-500.0,0.00016438,2]
[330219000,1719178239043,-500.0,0.00016438,2]
[330219001,1719178239054,-433.56795693,0.00016438,2]
[330219002,1719178239068,-754.81204307,0.00016438,2]
[330219003,1719178239078,-500.0,0.00016438,2]
[330219004,1719178239089,-1111.29,0.00016438,2]
[330219005,1719178239099,-500.0,0.00016438,2]
[330219006,1719178239109,-500.0,0.00016438,2]
[330219007,1719178239119,-827.29,0.00016438,2]
[330219008,1719178239131,-3274.46,0.00016438,2]
[330219009,1719178239141,-500.0,0.00016438,2]
[330219010,1719178239150,-538.55,0.00016438,2]
[330219011,1719178239160,-500.0,0.00016438,2]
[330219012,1719178239170,-500.0,0.00016438,2]
[330219013,1719178239179,-500.0,0.00016438,2]
[330219014,1719178239189,-424.1119838,0.00016438,2]
[330219015,1719178239223,-995.4980162,0.00016438,2]
[330219016,1719178239234,-500.0,0.00016438,2]
[330219017,1719178239245,-500.0,0.00016438,2]
[330219018,1719178239255,-330.47413478,0.00016438,2]
[330219019,1719178239269,-109.56796104,0.00016438,2]
[330219020,1719178239279,-500.0,0.00016438,2]
[330219021,1719178239291,-92.20859052,0.00016438,2]
[330219022,1719178239304,-407.79140948,0.00016438,2]
[330219023,1719178239315,-500.0,0.00016438,2]
[330219024,1719178239326,-500.0,0.00016438,2]
[330219025,1719178239335,-692.93,0.00016438,2]
[330219026,1719178239345,-1444.11,0.00016438,2]
[330219027,1719178239355,-370.93717894,0.00016438,2]
[330219028,1719178239366,-1694.36,0.00016438,2]
[330219029,1719178239376,-500.0,0.00016438,2]
[330219030,1719178239386,-601.4,0.00016438,2]
[330219031,1719178239397,-536.68,0.00016438,2]
[330219032,1719178239407,-500.0,0.00016438,2]
[330219033,1719178239417,-612.65,0.00016438,2]
[330219034,1719178239426,-500.0,0.00016438,2]
[330219035,1719178239437,-500.0,0.00016438,2]
[330219036,1719178239447,-957.03,0.00016438,2]
[330219037,1719178239456,-500.0,0.00016438,2]
[330219038,1719178239467,-303.91092818,0.00016438,2]
[330219039,1719178239477,-171.20339996,0.00016438,2]
[330219040,1719178239486,-15687.02947904,0.00016438,2]
[330219068,1719178240749,-155.67984992,0.00015745,2]
[330219070,1719178240767,-2084.5913737,0.00016438,2]
[330219168,1719178243862,-205.754624,0.00016164,2]
[330219170,1719178243875,-47.6888058,0.00016438,2]
[330219174,1719178243989,-33.60034146,0.00016438,2]
[330219175,1719178244003,-500.0,0.00016438,2]
[330219176,1719178244014,-500.0,0.00016438,2]
[330219177,1719178244025,-783.94,0.00016438,2]
[330219178,1719178244036,-1161.19,0.00016438,2]
[330219179,1719178244047,-592.39,0.00016438,2]
[330219180,1719178244058,-500.0,0.00016438,2]
[330219181,1719178244069,-500.0,0.00016438,2]
[330219182,1719178244079,-618.05,0.00016438,2]
[330219183,1719178244091,-500.0,0.00016438,2]
[330219184,1719178244102,-500.0,0.00016438,2]
[330219185,1719178244114,-522.96573109,0.00016438,2]
[330219186,1719178244125,-500.0,0.00016438,2]
[330219187,1719178244136,-582.13,0.00016438,2]
[330219188,1719178244147,-500.0,0.00016438,2]
[330219189,1719178244158,-2556.16,0.00016438,2]
[330219190,1719178244170,-500.0,0.00016438,2]
[330219191,1719178244181,-500.0,0.00016438,2]
[330219192,1719178244192,-500.0,0.00016438,2]
[330219193,1719178244203,-1133.51,0.00016438,2]
[330219194,1719178244214,-959.27,0.00016438,2]
[330219195,1719178244226,-500.0,0.00016438,2]
[330219196,1719178244238,-500.0,0.00016438,2]
[330219197,1719178244251,-500.0,0.00016438,2]
[330219198,1719178244261,-500.0,0.00016438,2]
[330219199,1719178244271,-5091.88,0.00016438,2]
[330219200,1719178244283,-1233.42,0.00016438,2]
[330219202,1719178244293,-500.0,0.00016438,2]
[330219203,1719178244304,-500.0,0.00016438,2]
[330219204,1719178244316,-500.0,0.00016438,2]
[330219205,1719178244328,-500.0,0.00016438,2]
[330219206,1719178244338,-500.0,0.00016438,2]
[330219207,1719178244347,-1025.68,0.00016438,2]
[330219208,1719178244356,-1946.0,0.00016438,2]
[330219209,1719178244540,-804.81,0.00016438,2]
[330219210,1719178244558,-518.45,0.00016438,2]
[330219211,1719178244567,-1110.48,0.00016438,2]
[330219212,1719178244577,-539.55,0.00016438,2]
[330219213,1719178244587,-747.9,0.00016438,2]
[330219214,1719178244596,-500.0,0.00016438,2]
[330219215,1719178244605,-473.87871896,0.00016438,2]
[330219216,1719178244615,-815.86,0.00016438,2]
[330219217,1719178244624,-500.0,0.00016438,2]
[330219218,1719178244633,-500.0,0.00016438,2]
[330219219,1719178244642,-606.23,0.00016438,2]
[330219220,1719178244651,-652.43,0.00016438,2]
[330219221,1719178244666,-5700.81,0.00016438,2]
[330219222,1719178244675,-3395.33,0.00016438,2]
[330219223,1719178244684,-500.0,0.00016438,2]
[330219224,1719178244693,-500.0,0.00016438,2]
[330219225,1719178244703,-500.0,0.00016438,2]
[330219226,1719178244713,-500.0,0.00016438,2]
[330219227,1719178244722,-500.0,0.00016438,2]
[330219228,1719178244731,-500.0,0.00016438,2]
[330219229,1719178244742,-1008.02,0.00016438,2]
[330219230,1719178244751,-529.01985892,0.00016438,2]
[330219231,1719178244761,-500.0,0.00016438,2]
[330219232,1719178244771,-601.68813483,0.00016438,2]
[330219233,1719178244780,-939.02,0.00016438,2]
[330219234,1719178244790,-538.17,0.00016438,2]
[330219235,1719178244799,-500.0,0.00016438,2]
[330219236,1719178244808,-500.0,0.00016438,2]
[330219237,1719178244818,-500.0,0.00016438,2]
[330219238,1719178244827,-500.0,0.00016438,2]
[330219239,1719178244837,-500.0,0.00016438,2]
[330219240,1719178244846,-500.0,0.00016438,2]
[330219241,1719178244855,-541.49,0.00016438,2]
[330219242,1719178244865,-500.0,0.00016438,2]
[330219243,1719178244875,-2516.68,0.00016438,2]